bitfinex/quotes_ETHUSD_20241216
["timestamp","ask_amount","ask_price","bid_price","bid_amount"]
[1734313797357,2.1664961,3996.4,3995.5,1.08346363]
[1734313797569,1.04392421,3996.6,3995.5,1.08346363]
[1734313797852,1.04392421,3996.6,3995.5,0.7838]
[1734313798151,3.21050552,3996.6,3995.5,0.7838]
[1734313798462,0.86663252,3996.5,3995.5,0.7838]
[1734313798785,1.04392421,3996.6,3995.7,0.50925809]
[1734313798986,1.04392421,3996.7,3995.8,0.7838]
[1734313799486,1.91054417,3996.7,3995.8,0.7838]
[1734313800061,0.86661996,3996.7,3995.8,0.7838]
[1734313800248,3.2105282,3996.7,3995.8,0.7838]
[1734313800454,2.1609553,3996.3,3995.4,1.04392894]
[1734313800652,2.1667755,3996.2,3995.0,1.04392894]
[1734313800888,2.1667755,3996.1,3995.1,1.21531002]
[1734313801100,0.86679043,3996.0,3995.0,0.33588336]
[1734313801300,0.86681185,3995.9,3994.8,1.79592894]
[1734313801488,3.21099292,3995.8,3994.8,0.752]
[1734313801685,0.86685846,3995.7,3994.8,0.752]
[1734313801863,1.04392421,3995.9,3994.8,0.752]
[1734313802170,1.56588632,3996.0,3994.8,0.752]
[1734313802171,1.04392421,3996.0,3994.9,1.21524168]
[1734313802371,0.86677302,3995.9,3994.8,1.79592894]
[1734313802585,1.04392421,3996.1,3994.9,1.21525275]
[1734313802769,1.04392421,3996.2,3995.0,2.19917092]
[1734313802975,1.04392421,3996.2,3995.1,1.21525275]
[1734313803272,0.86677433,3996.3,3995.0,0.98391817]
[1734313803273,3.21086004,3996.1,3995.0,0.98391817]
[1734313803461,2.16693583,3996.0,3995.0,0.98391817]
[1734313803666,1.56588632,3996.2,3995.0,0.98391817]
[1734313803667,1.04392421,3996.2,3995.1,1.46741937]
[1734313803907,1.04392421,3996.4,3995.2,1.97330475]
[1734313804077,1.91068625,3996.4,3995.2,3.01723369]
[1734313804276,0.86676204,3996.3,3995.3,1.69853005]
[1734313804480,1.80262421,3996.5,3995.4,1.21530475]
[1734313804791,3.21082767,3996.4,3995.3,0.4832253]
[1734313805011,0.86676138,3996.3,3995.4,1.46928783]
[1734313805291,1.80262421,3996.5,3995.5,1.21607101]
[1734313805616,1.55226352,3996.7,3995.6,2.02744557]
[1734313805911,0.86672144,3996.6,3995.7,1.21604557]
[1734313806337,1.04392421,3996.9,3995.8,0.7966]
[1734313806641,1.04392421,3996.9,3995.9,2.08391958]
[1734313806839,1.04392421,3996.9,3995.9,0.41758212]
[1734313806840,1.91062153,3996.9,3995.9,0.41758212]
[1734313807130,1.30004599,3997.0,3995.8,0.7966]
[1734313807131,3.21068397,3996.8,3995.8,0.7966]
[1734313807337,3.21068397,3996.7,3995.8,0.7966]
[1734313807481,2.16675976,3996.6,3995.8,0.7966]
[1734313807682,1.04392421,3996.7,3995.8,0.7966]
[1734313808214,1.91067954,3996.7,3995.8,0.7966]
[1734313808415,0.86675533,3996.6,3995.8,0.7966]
[1734313808724,1.04392421,3996.7,3995.8,0.7966]
[1734313808928,1.04392421,3996.8,3995.9,0.83388535]
[1734313809107,1.04392421,3996.8,3995.8,0.7966]
[1734313809300,0.86668998,3996.7,3995.9,0.83382634]
[1734313809500,1.04392421,3997.0,3996.0,1.10134586]
[1734313809820,1.04392421,3997.0,3996.1,0.7739]
[1734313810230,1.9105938,3997.0,3996.1,0.7739]
[1734313810382,2.16667398,3996.9,3996.1,0.7739]
[1734313810580,1.04392421,3997.0,3996.1,0.7739]
[1734313810889,3.2105064,3996.9,3996.1,0.7739]
[1734313811221,2.16658219,3996.8,3996.1,0.7739]
[1734313811421,2.16658219,3996.7,3996.1,0.7739]
[1734313811621,0.86662046,3996.6,3996.1,0.7739]
[1734313811921,1.04392421,3996.7,3996.1,0.7739]
[1734313813251,1.91063421,3996.7,3996.1,0.7739]
[1734313813408,2.166775,3996.6,3996.1,0.7739]
[1734313813610,1.04392421,3996.7,3996.1,0.7739]
[1734313814089,1.91066705,3996.7,3996.1,0.7739]
[1734313814286,2.1668571,3996.6,3996.1,0.7739]
[1734313814521,3.20487951,3996.7,3995.6,0.7934]
[1734313814728,1.04392421,3996.4,3995.6,0.7934]
[1734313815039,3.21093468,3996.3,3995.6,0.7934]
[1734313815190,2.16701047,3996.2,3995.6,0.7934]
[1734313815495,1.04392421,3996.4,3995.6,0.7934]
[1734313815695,1.04392421,3996.7,3995.7,0.8338482]
[1734313815899,1.04392421,3996.8,3995.7,0.8338482]
[1734313816110,1.04392421,3996.7,3995.7,0.8338482]
[1734313816335,1.91067972,3996.7,3995.7,0.8338482]
[1734313816645,1.04392421,3996.4,3995.6,0.7934]
[1734313816922,0.86675551,3996.3,3995.6,0.7934]
[1734313817097,1.04392421,3996.8,3995.7,2.08486611]
[1734313817296,1.04392421,3996.8,3995.8,2.08489193]
[1734313817297,3.21082387,3996.8,3995.8,2.08489193]
[1734313817528,0.86675986,3996.7,3995.9,0.83401258]
[1734313817713,1.04392421,3996.9,3995.7,1.04392894]
[1734313818220,1.04392421,3996.9,3995.7,3.17785892]
[1734313818408,1.910643,3996.9,3995.7,3.17785892]
[1734313818601,2.16679698,3996.8,3995.8,2.13392998]
[1734313818812,1.04392421,3996.9,3995.9,2.1338655]
[1734313818996,1.04392421,3996.9,3996.0,0.85357199]
[1734313819242,3.2106835,3996.9,3995.7,1.04392894]
[1734313819434,0.86669807,3996.8,3995.7,3.74471108]
[1734313819724,1.04392421,3996.9,3995.8,2.13401042]
[1734313819725,0.86669807,3996.7,3995.8,2.13401042]
[1734313820022,1.04392421,3996.9,3995.9,0.85360417]
[1734313820229,1.04392421,3996.9,3995.6,2.02106183]
[1734313820527,1.91063806,3996.9,3995.7,2.13428867]
[1734313820688,3.21070884,3996.9,3995.7,2.13428867]
[1734313820891,2.16678463,3996.8,3995.8,2.13428867]
[1734313821117,2.16681642,3996.7,3995.6,1.83732894]
[1734313821349,1.04392421,3996.8,3995.7,2.13364425]
[1734313821487,1.04392421,3996.8,3995.8,0.8534577]
[1734313821692,1.04392421,3996.8,3995.9,0.8534101]
[1734313821892,1.04392421,3996.8,3995.6,1.83732894]
[1734313821893,3.21071041,3996.8,3995.6,1.83732894]
[1734313822091,2.16678667,3996.7,3995.7,2.13378857]
[1734313822333,1.04392421,3996.8,3995.8,2.13388772]
[1734313822542,1.91067305,3996.7,3995.6,0.7934]
[1734313822842,3.21079632,3996.6,3995.6,0.7934]
[1734313823048,1.04392421,3996.6,3995.7,0.853627]
[1734313823341,2.50225,3996.4,3995.7,0.853627]
[1734313823491,2.50225,3996.4,3995.6,0.7934]
[1734313823691,2.50225,3996.4,3995.7,0.85380461]
[1734313824893,2.50225,3996.4,3995.6,0.7934]
[1734313825111,2.50232,3996.3,3995.7,0.85430168]
[1734313825343,2.50266,3995.8,3995.3,0.7626]
[1734313825538,2.16732862,3996.2,3994.9,1.5629047]
[1734313825539,2.50277,3995.6,3995.0,0.7626]
[1734313825845,2.50262,3995.8,3995.0,0.7626]
[1734313825995,2.50262,3995.8,3995.1,0.85480668]
[1734313826200,2.50262,3995.8,3995.0,0.7626]
[1734313826700,2.50262,3995.8,3995.1,0.85448815]
[1734313827726,2.50262,3995.8,3995.1,1.12058986]
[1734313827928,2.50262,3995.8,3995.2,0.85448815]
[1734313828241,2.50277,3995.6,3995.0,0.7626]
[1734313828795,1.04392421,3995.8,3995.0,0.7626]
[1734313828796,2.50282,3995.5,3995.0,0.7626]
[1734313830593,1.04392421,3995.8,3995.0,0.7626]
[1734313830794,2.5027,3995.7,3995.0,0.7626]
[1734313834456,1.04392421,3996.0,3995.0,0.7626]
[1734313834852,3.20783918,3996.0,3995.0,0.7626]
[1734313837109,2.50256,3995.9,3995.0,0.7626]
[1734313837408,2.50269,3995.7,3995.0,0.7626]
[1734313838004,3.54647421,3996.0,3995.0,0.7626]
[1734313838208,2.50255,3996.0,3995.0,0.7626]
[1734313838523,2.50255,3996.0,3995.0,1.19358289]
[1734313838715,2.50255,3996.0,3995.1,0.7939]
[1734313839275,2.38608632,3996.6,3995.2,0.85524973]
[1734313839276,3.54609421,3996.6,3995.2,0.85524973]
[1734313839517,3.54609421,3996.6,3995.4,0.7939]
[1734313839518,2.50217,3996.6,3995.4,0.7939]
[1734313840703,1.04392421,3996.9,3995.6,0.794]
[1734313840904,1.56588632,3997.1,3995.6,2.50275]
[1734313840905,1.04392421,3997.1,3995.6,2.50275]
[1734313841106,2.1603402,3997.1,3995.8,0.794]
[1734313841320,2.50187,3997.0,3995.8,0.794]
[1734313841475,2.50194,3996.9,3995.8,1.24103258]
[1734313841976,1.04392421,3997.1,3995.8,0.794]
[1734313842175,2.50227,3996.4,3995.8,0.794]
[1734313843177,2.38527,3996.4,3995.8,0.794]
[1734313845681,2.50227,3996.4,3995.8,0.794]
[1734313847017,5.70683951,3996.9,3995.8,0.794]
[1734313847018,3.20487951,3996.9,3995.8,0.794]
[1734313847213,2.50212,3996.6,3995.8,0.794]
[1734313849216,2.07811274,3997.1,3995.8,0.794]
[1734313849217,2.50201,3996.8,3995.8,0.794]
[1734313849600,2.5019,3997.0,3995.8,2.50262]
[1734313849805,2.5019,3997.0,3996.0,0.7805]
[1734313851631,3.70998635,3997.3,3996.0,0.7805]
[1734313851831,2.5019,3997.0,3996.0,0.7805]
[1734313854400,2.50175,3997.2,3996.1,0.7974]
[1734313854606,2.50175,3997.2,3996.3,0.7974]
[1734313855940,2.50182,3997.1,3996.3,0.7974]
[1734313857102,2.50195,3996.9,3996.3,0.7974]
[1734313857744,2.99864958,3996.9,3996.3,0.7974]
[1734313858851,0.49669958,3996.9,3996.3,0.7974]
[1734313859048,2.502,3996.8,3995.5,0.8057]
[1734313859350,1.31539958,3996.9,3995.5,0.8057]
[1734313859550,2.50218,3996.6,3995.5,0.8057]
[1734313860406,2.50218,3996.6,3995.7,0.50123683]
[1734313860610,2.50218,3996.6,3995.8,0.8057]
[1734313860838,2.50218,3996.6,3995.9,0.13069368]
[1734313861738,2.5022,3996.5,3995.8,0.8057]
[1734313863438,1.31539958,3996.9,3995.8,0.8057]
[1734313863641,2.50207,3996.7,3995.8,0.8057]
[1734313864244,2.50193,3997.0,3995.8,0.8057]
[1734313864441,2.50175,3997.2,3996.0,0.7581]
[1734313864665,2.50175,3997.2,3996.0,2.50248]
[1734313864958,2.50173,3997.3,3996.2,0.8315]
[1734313865746,1.04392421,3997.7,3996.2,0.8315]
[1734313865747,2.50175,3997.2,3996.2,0.8315]
[1734313866460,2.50175,3997.2,3996.6,0.51108237]
[1734313867353,0.51188281,3997.5,3996.6,0.51108237]
[1734313867538,2.50186,3997.1,3996.2,0.8315]
[1734313868517,2.50194,3996.9,3996.2,0.8315]
[1734313868744,2.50194,3996.9,3996.4,0.50497899]
[1734313868945,2.50194,3996.9,3996.2,0.8315]
[1734313869456,2.50194,3996.9,3995.2,2.20785029]
[1734313869457,2.50194,3996.9,3995.5,1.5629047]
[1734313869666,2.50194,3996.9,3996.2,0.49092123]
[1734313870366,2.50181,3997.1,3996.2,0.49092123]
[1734313871416,0.51188281,3997.5,3996.2,0.49092123]
[1734313871617,2.33318632,3997.9,3996.2,0.49092123]
[1734313871618,2.50169,3997.3,3996.2,0.49092123]
[1734313871940,2.50169,3997.3,3996.2,0.79025635]
[1734313872118,1.04392421,3997.8,3996.2,0.79025635]
[1734313872319,3.36486375,3997.7,3996.2,0.49092123]
[1734313872517,2.50175,3997.2,3996.3,0.8209]
[1734313872726,2.50179,3997.2,3996.3,0.8209]
[1734313875698,0.48967157,3997.6,3996.3,0.8209]
[1734313875899,1.04392421,3997.8,3996.2,0.49092123]
[1734313875900,2.50137,3997.8,3996.5,0.8209]
[1734313876047,2.50143,3997.7,3996.5,0.8209]
[1734313876252,2.50168,3997.4,3996.5,0.8209]
[1734313876529,2.50168,3997.4,3996.5,0.96520034]
[1734313877702,2.50171,3997.3,3996.5,0.96520034]
[1734313879185,2.50169,3997.3,3996.5,0.96520034]
[1734313880296,2.50164,3997.4,3996.5,0.96520034]
[1734313881057,2.50164,3997.4,3996.8,0.50542942]
[1734313882888,1.81122421,3997.9,3996.8,0.6524924]
[1734313883088,1.04392421,3998.0,3996.9,0.7524]
[1734313883290,2.99957692,3998.1,3997.1,0.7524]
[1734313883606,1.04392421,3998.4,3997.1,0.7524]
[1734313883764,1.04392421,3998.7,3997.3,0.7861]
[1734313883962,2.35998632,3998.9,3997.2,2.13449414]
[1734313883963,1.04392421,3998.8,3997.5,0.7861]
[1734313884313,1.04392421,3999.0,3997.8,0.7861]
[1734313884504,3.54454421,3999.0,3997.8,0.7861]
[1734313884703,2.1600208,3999.1,3997.8,0.7861]
[1734313884704,0.86400832,3998.9,3997.8,0.7861]
[1734313884917,0.50973095,3999.1,3997.9,0.42099109]
[1734313885059,1.04392421,3999.7,3998.3,2.1609553]
[1734313885264,1.98990591,4000.3,3998.5,0.7795]
[1734313885573,0.86322903,4000.2,3998.5,0.7795]
[1734313885762,2.50012,3999.8,3998.5,0.7795]
[1734313886164,1.98990591,4000.3,3998.5,0.7795]
[1734313886519,0.51143155,4000.0,3999.1,0.7982]
[1734313886861,2.50014,3999.8,3999.1,0.7982]
[1734313887055,2.50019,3999.7,3999.1,0.7982]
[1734313887314,0.51143155,4000.0,3999.1,0.7982]
[1734313887602,2.50038,3999.4,3999.1,0.7982]
[1734313888701,0.8306,3999.8,3998.8,0.7635]
[1734313888904,2.50088,3998.6,3998.4,0.7635]
[1734313889663,2.49786769,3998.6,3998.4,0.7635]
[1734313890625,0.7541,3999.0,3997.2,0.7534]
[1734313890760,0.49286763,3998.8,3997.2,1.24426837]
[1734313890965,2.50081,3998.7,3997.2,1.24426837]
[1734313891203,2.50132,3997.9,3997.2,1.24426837]
[1734313892515,2.50168,3997.3,3997.2,0.7534]
[1734313892676,2.50119,3998.1,3996.1,0.7534]
[1734313893014,2.50183,3997.1,3996.1,1.24292778]
[1734313893811,2.50197,3996.9,3996.2,0.50021491]
[1734313894019,2.50198,3996.9,3996.1,0.7534]
[1734313894822,2.50164,3997.4,3996.1,0.7534]
[1734313894985,2.50164,3997.4,3996.2,0.12515706]
[1734313895187,2.50201,3996.8,3996.1,0.8103]
[1734313896088,2.50184,3997.1,3996.1,0.8103]
[1734313896277,2.50159,3997.5,3996.1,0.8103]
[1734313896502,2.9858553,3998.7,3996.3,0.8103]
[1734313896805,2.9858553,3998.7,3996.6,0.8103]
[1734313896806,2.50128,3998.0,3996.6,0.8103]
[1734313897373,2.50128,3998.0,3996.6,2.5021]
[1734313897610,2.50128,3998.0,3996.7,0.8125]
[1734313897905,2.50128,3998.0,3996.8,0.8125]
[1734313898219,2.50114,3998.2,3997.0,0.8125]
[1734313898376,2.50095,3998.5,3997.0,0.8125]
[1734313899099,2.50095,3998.5,3997.3,0.7715]
[1734313899303,2.50095,3998.5,3997.5,0.7715]
[1734313899835,0.8112,3999.0,3997.5,0.7715]
[1734313900041,2.50076,3998.8,3997.5,0.7715]
[1734313900754,0.8112,3999.0,3997.5,0.7715]
[1734313900890,2.50086,3998.7,3997.5,1.098823]
[1734313901089,2.50086,3998.7,3997.6,0.7772]
[1734313902996,0.8112,3999.0,3997.6,0.7772]
[1734313903197,2.50087,3998.6,3997.6,0.7772]
[1734313907649,0.8112,3999.0,3997.6,0.7772]
[1734313907650,2.50094,3998.5,3997.6,0.7772]
[1734313908051,0.8112,3999.0,3997.6,0.7772]
[1734313908289,2.50097,3998.5,3997.6,0.7772]
[1734313908461,2.1609553,3998.7,3997.6,0.7772]
[1734313908666,0.7791,3998.3,3997.6,0.7772]
[1734313908864,2.50137,3997.8,3997.6,0.7772]
[1734313912000,2.50143,3997.7,3997.3,0.798]
[1734313913163,2.50134,3997.9,3997.3,0.798]
[1734313915892,0.7791,3998.3,3997.3,0.798]
[1734313916079,2.50138,3997.8,3997.3,0.798]
[1734313916494,0.7791,3998.3,3997.3,0.798]
[1734313916495,2.9400553,3998.3,3997.3,0.798]
[1734313916697,2.9400553,3998.3,3996.2,0.7873]
[1734313917010,2.50112,3998.2,3996.3,0.7873]
[1734313917165,2.50181,3997.1,3996.3,0.7873]
[1734313919971,2.50167,3997.4,3996.3,0.7873]
[1734313920216,2.50167,3997.4,3996.4,0.7873]
[1734313920515,2.50164,3997.4,3996.4,0.7873]
[1734313923281,0.8028,3998.2,3996.7,0.8267]
[1734313923483,2.50113,3998.2,3996.9,0.8267]
[1734313923680,2.50113,3998.2,3997.1,0.8267]
[1734313923878,2.50113,3998.2,3997.2,0.0781326]
[1734313924085,4.6614453,3999.3,3997.3,0.9048326]
[1734313924086,2.50099,3998.5,3997.3,0.9048326]
[1734313924413,0.8028,3998.9,3997.5,0.8267]
[1734313924593,2.1609553,3999.3,3997.7,0.8267]
[1734313924594,2.50075,3998.8,3997.7,0.8267]
[1734313924794,2.50075,3998.8,3997.6,0.0781326]
[1734313924795,2.50075,3998.8,3997.8,0.9048326]
[1734313925003,2.50075,3998.8,3997.9,0.0781326]
[1734313925199,2.50075,3998.8,3998.0,0.0781326]
[1734313925425,2.50075,3998.8,3998.1,0.0781326]
[1734313925628,2.50075,3998.8,3998.2,0.0781326]
[1734313926115,0.8028,3999.2,3998.3,0.07812369]
[1734313926322,2.50082,3998.7,3997.8,0.8267]
[1734313926649,2.50082,3998.7,3997.9,0.07812349]
[1734313926946,2.50082,3998.7,3998.0,0.84612349]
[1734313927129,1.04228591,3999.5,3998.1,0.07812349]
[1734313927130,2.50065,3999.0,3998.1,0.07812349]
[1734313927429,2.50036,3999.5,3998.2,0.88512349]
[1734313927638,2.50036,3999.5,3998.1,2.50117]
[1734313927639,2.50036,3999.5,3998.4,0.807]
[1734313927796,2.50045,3999.3,3998.5,0.07812349]
[1734313927987,0.8,4000.1,3998.6,0.07812349]
[1734313928190,0.8,4000.1,3998.7,0.07812349]
[1734313928191,0.8048,3999.8,3998.7,0.07812349]
[1734313928389,0.8048,3999.8,3998.4,0.807]
[1734313928390,2.50067,3999.0,3998.4,0.807]
[1734313928637,2.50053,3999.2,3998.5,0.07811519]
[1734313928841,0.8048,3999.8,3998.6,0.07811519]
[1734313929139,0.8048,3999.8,3998.7,0.07811519]
[1734313929371,2.50046,3999.3,3998.4,0.807]
[1734313929536,2.50057,3999.1,3998.8,0.07811562]
[1734313929739,2.50057,3999.1,3998.5,0.07811562]
[1734313929940,2.50057,3999.1,3998.6,0.07811695]
[1734313930123,2.50057,3999.1,3998.4,0.807]
[1734313930326,2.50057,3999.1,3998.5,0.07811727]
[1734313930559,2.50057,3999.1,3998.6,0.07811727]
[1734313930874,2.50057,3999.1,3998.4,0.807]
[1734313931023,2.50057,3999.1,3998.5,0.07811736]
[1734313931225,2.50057,3999.1,3998.6,0.07811736]
[1734313931440,2.50057,3999.1,3998.4,0.807]
[1734313931724,2.50057,3999.1,3998.5,0.07811724]
[1734313932039,2.50057,3999.1,3998.6,0.07811724]
[1734313932374,2.50069,3998.9,3998.4,0.807]
[1734313932526,2.50076,3998.8,3998.4,0.807]
[1734313935642,2.1609553,3999.5,3998.4,0.807]
[1734313935841,2.5008,3998.8,3998.4,0.807]
[1734313936988,2.50074,3998.9,3997.9,0.8176]
[1734313937289,2.50117,3998.2,3998.0,0.07812779]
[1734313937493,4.02164121,3999.1,3997.9,0.8176]
[1734313937645,2.50101,3998.4,3997.9,0.8176]
[1734313937980,2.15721581,3999.0,3997.9,0.8176]
[1734313937981,2.50062,3999.0,3997.9,0.8176]
[1734313938171,2.50121,3998.1,3997.9,0.8176]
[1734313938668,2.50151,3997.6,3996.9,0.7824]
[1734313938845,0.7505,3998.6,3997.0,0.07813483]
[1734313938846,2.50158,3997.5,3997.0,0.07813483]
[1734313939050,2.50158,3997.5,3997.1,0.07813483]
[1734313939245,2.50143,3997.8,3997.2,0.07813483]
[1734313939476,2.50119,3998.1,3997.3,0.07813483]
[1734313939785,0.7505,3997.9,3996.9,0.7824]
[1734313939955,2.50176,3997.2,3997.0,0.07814578]
[1734313940158,2.50176,3997.2,3997.1,0.07814578]
[1734313940359,2.50176,3997.2,3996.9,0.7824]
[1734313940546,2.50176,3997.2,3997.0,0.07814919]
[1734313940750,2.50176,3997.2,3996.9,0.7824]
[1734313941082,2.50176,3997.2,3997.0,0.07814859]
[1734313941256,2.50176,3997.2,3996.9,0.7824]
[1734313941462,2.50184,3997.1,3996.9,0.7824]
[1734313942890,2.50148,3997.7,3997.0,0.0781497]
[1734313943046,2.50148,3997.7,3996.9,0.7824]
[1734313943047,2.50148,3997.7,3997.1,0.0781497]
[1734313943253,2.50148,3997.7,3996.9,0.7824]
[1734313943488,2.50148,3997.7,3997.0,0.07814469]
[1734313943689,2.50148,3997.7,3996.9,0.7824]
[1734313943690,2.50148,3997.7,3997.1,0.07814469]
[1734313943844,0.7508,3998.2,3997.2,0.07814469]
[1734313944049,0.7508,3998.2,3996.9,0.7824]
[1734313944050,2.50136,3997.9,3996.9,0.7824]
[1734313944271,2.50136,3997.9,3997.0,0.07814327]
[1734313944477,2.50136,3997.9,3997.1,0.07814327]
[1734313944703,2.50138,3997.8,3997.2,0.07814327]
[1734313944904,2.50138,3997.8,3997.3,0.07814327]
[1734313945220,2.50138,3997.8,3996.9,1.110852]
[1734313945515,2.50138,3997.8,3997.0,0.07814089]
[1734313945822,0.7508,3998.2,3997.1,0.07814089]
[1734313945823,2.50127,3998.0,3997.1,0.07814089]
[1734313946111,2.50127,3998.0,3996.9,0.328452]
[1734313946112,2.50133,3997.9,3997.2,0.83554089]
[1734313946316,2.50133,3997.9,3997.3,0.07814089]
[1734313946475,2.50133,3997.9,3997.4,0.07814089]
[1734313946676,2.50133,3997.9,3997.5,0.07814089]
[1734313946882,2.50133,3997.9,3997.2,0.7574]
[1734313947089,2.50113,3998.2,3997.3,0.07813716]
[1734313947387,2.50113,3998.2,3997.4,0.7574]
[1734313947696,2.50113,3998.2,3997.5,0.07813563]
[1734313947895,2.50113,3998.2,3997.4,0.7574]
[1734313947896,2.50113,3998.2,3997.6,0.07813406]
[1734313948099,2.50113,3998.2,3997.4,0.7574]
[1734313948339,2.50113,3998.2,3997.5,0.07813485]
[1734313948484,2.50113,3998.2,3997.6,0.07813485]
[1734313948683,2.50113,3998.2,3997.4,0.7574]
[1734313948901,4.29707591,3998.8,3997.5,0.07813633]
[1734313949125,3.25479,3998.8,3997.6,0.07813633]
[1734313949296,2.50106,3998.3,3997.7,0.07813633]
[1734313949516,2.1609553,3998.9,3997.8,0.07813328]
[1734313949710,2.1609553,3998.9,3997.9,0.86623328]
[1734313949917,4.02834121,3999.3,3998.0,0.07813328]
[1734313950113,2.50076,3998.8,3998.1,0.07813328]
[1734313950317,2.50058,3999.1,3998.2,0.90153328]
[1734313950631,3.99994121,3999.7,3998.4,0.8234]
[1734313950632,2.9576553,3999.7,3998.4,0.8234]
[1734313950832,2.50041,3999.4,3998.5,0.07813328]
[1734313950991,2.50041,3999.4,3998.6,0.07813328]
[1734313951199,2.50041,3999.4,3998.4,0.8234]
[1734313951200,2.50041,3999.4,3998.7,0.07813328]
[1734313951389,2.9576553,3999.7,3998.8,0.07813328]
[1734313951390,2.50046,3999.3,3998.8,0.07813328]
[1734313951621,2.9576553,3999.7,3998.4,0.8234]
[1734313951851,2.1609553,3999.3,3998.5,0.07811111]
[1734313952057,2.50081,3998.7,3998.6,0.07811111]
[1734313952215,2.50102,3998.4,3998.0,0.7868]
[1734313952417,2.50102,3998.4,3998.1,0.07812389]
[1734313952618,2.50102,3998.4,3998.2,0.07812389]
[1734313952818,2.50102,3998.4,3998.0,0.7868]
[1734313953040,2.50102,3998.4,3998.1,0.07812491]
[1734313953247,2.50102,3998.4,3998.2,0.07812491]
[1734313953470,2.50111,3998.3,3998.0,0.7868]
[1734313953764,2.50111,3998.3,3997.3,0.7868]
[1734313953976,2.50111,3998.3,3997.4,0.07813049]
[1734313954122,2.50111,3998.3,3997.5,0.07813049]
[1734313954323,2.50111,3998.3,3997.6,0.07813049]
[1734313954647,2.50111,3998.3,3997.7,0.85083049]
[1734313954829,2.50111,3998.3,3997.8,0.07813049]
[1734313955030,2.9797553,3998.9,3997.9,0.07813049]
[1734313955256,2.9797553,3998.9,3998.0,0.07813049]
[1734313955257,2.50118,3998.1,3998.0,0.07813049]
[1734313956263,2.50096,3998.5,3998.0,0.07813049]
[1734313956434,2.50096,3998.5,3998.1,0.07813049]
[1734313956760,2.50096,3998.5,3997.7,0.7727]
[1734313956980,2.50096,3998.5,3997.8,0.0781299]
[1734313957186,2.50096,3998.5,3997.9,0.0781299]
[1734313957346,2.50096,3998.5,3998.0,0.0781299]
[1734313957547,2.50096,3998.5,3998.1,0.0281299]
[1734313957744,2.50096,3998.5,3997.7,0.7727]
[1734313958265,0.8188,3998.9,3997.7,0.7727]
[1734313958585,2.50107,3998.3,3997.7,0.7727]
[1734313959099,2.9797553,3998.9,3997.7,0.7727]
[1734313959100,2.50093,3998.6,3997.7,0.7727]
[1734313959246,3.30185,3999.2,3997.8,2.50131]
[1734313959460,2.50055,3999.2,3998.0,0.7601]
[1734313959754,2.50035,3999.5,3998.2,0.7601]
[1734313959954,2.50038,3999.4,3998.2,0.7601]
[1734313960206,2.50038,3999.4,3998.2,1.190668]
[1734313961597,2.50038,3999.4,3998.3,0.8122]
[1734313963470,2.50023,3999.7,3998.4,0.8122]
[1734313963659,2.50023,3999.7,3998.5,0.7518]
[1734313963860,2.50023,3999.7,3998.6,0.54137453]
[1734313964670,2.50032,3999.5,3998.6,0.54137453]
[1734313964877,2.50006,3999.9,3998.5,0.7518]
[1734313965057,2.50047,3999.3,3998.5,0.7518]
[1734313965252,2.50018,3999.7,3998.5,0.7518]
[1734313965670,2.50041,3999.4,3998.5,0.7518]
[1734313965867,2.50018,3999.7,3998.5,0.7518]
[1734313966101,2.50053,3999.2,3998.5,0.7518]
[1734313967301,2.50018,3999.7,3998.5,0.7518]
[1734313967500,2.50035,3999.5,3998.5,0.7518]
[1734313967901,2.50043,3999.3,3998.5,0.7518]
[1734313969732,2.50043,3999.3,3998.6,0.07811148]
[1734313969903,2.50043,3999.3,3998.7,0.07811148]
[1734313970220,2.50056,3999.1,3998.8,0.07811148]
[1734313970536,2.50056,3999.1,3998.3,0.8318]
[1734313970742,2.50037,3999.4,3998.4,0.07811408]
[1734313970927,2.50037,3999.4,3998.5,0.07811408]
[1734313971102,2.50065,3999.0,3998.3,0.8318]
[1734313971300,2.50069,3998.9,3998.4,0.0781172]
[1734313971500,2.50069,3998.9,3998.5,0.0781172]
[1734313971834,2.50069,3998.9,3998.3,0.8318]
[1734313971996,2.50069,3998.9,3998.4,0.07811762]
[1734313972198,2.50069,3998.9,3998.5,0.07811762]
[1734313972539,0.792,3999.5,3998.6,0.07811788]
[1734313972738,0.792,3999.5,3998.3,0.8318]
[1734313972894,0.792,3999.5,3998.4,0.07811929]
[1734313973097,0.792,3999.5,3998.3,0.8318]
[1734313973098,0.792,3999.5,3998.5,0.07811929]
[1734313973297,0.792,3999.5,3998.3,0.8318]
[1734313973298,2.50071,3998.9,3998.3,0.8318]
[1734313973530,2.50071,3998.9,3998.4,0.07811804]
[1734313973728,2.50071,3998.9,3998.5,0.07811804]
[1734313974000,0.792,3999.5,3998.6,0.07811804]
[1734313974001,2.50075,3998.8,3998.6,0.07811804]
[1734313974201,2.50075,3998.8,3998.3,0.8318]
[1734313974414,2.50075,3998.8,3998.4,0.07811827]
[1734313974614,0.792,3999.5,3998.5,0.07811827]
[1734313974821,0.792,3999.5,3998.3,0.8318]
[1734313974822,0.792,3999.5,3998.6,0.07811827]
[1734313975156,2.50054,3999.2,3998.7,0.07811827]
[1734313975362,2.50054,3999.2,3998.3,0.8318]
[1734313975570,2.50054,3999.2,3998.3,1.165103]
[1734313975778,2.50053,3999.2,3998.4,0.07811712]
[1734313976064,2.50053,3999.2,3998.5,0.07811712]
[1734313976224,2.50053,3999.2,3998.6,0.07811712]
[1734313976427,2.50053,3999.2,3998.7,0.07811712]
[1734313976773,0.792,3999.5,3998.8,0.07811712]
[1734313977061,0.792,3999.5,3998.3,0.8318]
[1734313977062,2.50087,3998.6,3998.3,0.8318]
[1734313977264,2.50074,3998.9,3998.4,0.07811898]
[1734313977559,2.50076,3998.8,3998.5,0.07811898]
[1734313977762,2.50076,3998.8,3998.3,0.8318]
[1734313977763,2.50076,3998.8,3998.6,0.07811898]
[1734313977962,2.50076,3998.8,3998.7,0.07811898]
[1734313978385,2.50076,3998.8,3998.0,0.7519]
[1734313978386,2.50084,3998.7,3998.0,0.7519]
[1734313978662,2.50084,3998.7,3998.1,0.07812109]